bitfinex/quotes_BTCUSD_20250408
["timestamp","ask_amount","ask_price","bid_price","bid_amount"]
[1744132498085,0.259636,77031.0,77029.0,0.12638123]
[1744132498321,0.012981,77030.0,77029.0,0.00012259]
[1744132498559,0.4101005,77030.0,77029.0,0.00012259]
[1744132498770,0.352981,77030.0,77029.0,0.00012259]
[1744132499220,0.012981,77030.0,77029.0,0.00012259]
[1744132500881,0.352981,77030.0,77029.0,0.00012259]
[1744132501115,0.52673964,77030.0,77029.0,5.9e-07]
[1744132501342,0.400481,77030.0,77029.0,5.9e-07]
[1744132501560,0.405481,77030.0,77029.0,5.9e-07]
[1744132502015,0.400481,77030.0,77029.0,5.9e-07]
[1744132502283,0.400481,77030.0,77029.0,0.00100059]
[1744132502284,0.408481,77030.0,77029.0,0.00100059]
[1744132502531,0.020981,77030.0,77029.0,0.00100059]
[1744132502773,0.012981,77030.0,77029.0,5.9e-07]
[1744132503175,0.017981,77030.0,77029.0,5.9e-07]
[1744132503382,0.3883389,77030.0,77029.0,5.9e-07]
[1744132503593,0.48423964,77030.0,77029.0,5.9e-07]
[1744132503763,0.53103964,77030.0,77029.0,5.9e-07]
[1744132504191,0.52603964,77030.0,77029.0,5.9e-07]
[1744132504469,0.012981,77030.0,77029.0,0.00200059]
[1744132504846,0.27262,77030.0,77029.0,0.00200059]
[1744132505009,0.259639,77030.0,77029.0,5.9e-07]
[1744132505225,0.27262,77030.0,77029.0,5.9e-07]
[1744132505516,0.82796054,77030.0,77029.0,5.9e-07]
[1744132505791,0.272698,77008.0,77007.0,0.02394038]
[1744132505991,0.259711,77009.0,77003.0,0.259726]
[1744132506234,0.272769,76988.0,76987.0,0.22812]
[1744132506445,0.012988,76991.0,76975.0,1.288621]
[1744132506446,0.34,76999.0,76975.0,1.0288]
[1744132506629,0.272812,76976.0,76975.0,1.0288]
[1744132506951,0.259771,76991.0,76983.0,0.012989]
[1744132507151,0.259781,76988.0,76984.0,0.12625864]
[1744132507443,0.58977618,77000.0,76987.0,0.012989]
[1744132507612,0.012988,76994.0,76987.0,0.012989]
[1744132507823,0.272769,76988.0,76987.0,0.009]
[1744132508194,0.259764,76993.0,76988.0,0.25978]
[1744132508454,0.259764,76993.0,76989.0,0.12625864]
[1744132508455,0.012988,76993.0,76989.0,0.12625864]
[1744132508647,0.012989,76988.0,76987.0,0.009]
[1744132508808,0.012989,76985.0,76983.0,0.22816]
[1744132509006,0.259753,76996.0,76991.0,0.012988]
[1744132509207,0.012988,76994.0,76984.0,0.12825864]
[1744132509406,0.012988,76994.0,76985.0,0.012989]
[1744132509610,0.012986,77001.0,76995.0,0.012987]
[1744132509808,0.012986,77004.0,76993.0,0.00259742]
[1744132510034,0.34,77009.0,76996.0,0.012987]
[1744132510236,0.34,77009.0,76986.0,0.02408603]
[1744132510237,0.60275918,77020.0,77013.0,0.259696]
[1744132510400,0.012984,77014.0,77008.0,0.012985]
[1744132510594,0.012984,77012.0,77008.0,0.12625864]
[1744132510854,0.012986,77005.0,77004.0,0.22816]
[1744132511054,0.012985,77008.0,77004.0,0.25226048]
[1744132511311,0.012985,77007.0,77004.0,0.25226048]
[1744132511515,0.272706,77006.0,77004.0,0.25268735]
[1744132511733,1.03379947,77042.0,77004.0,0.25268735]
[1744132511943,0.018984,77014.0,77009.0,0.259709]
[1744132512146,0.012983,77019.0,77010.0,0.012985]
[1744132512276,0.012983,77019.0,77007.0,0.272698]
[1744132512277,0.259696,77013.0,77009.0,0.259707]
[1744132512476,0.259696,77013.0,77010.0,0.02414901]
[1744132512714,0.012985,77011.0,77010.0,0.02414901]
[1744132512887,0.4360883,77011.0,77010.0,0.02414901]
[1744132513087,0.352985,77011.0,77010.0,0.02414901]
[1744132513289,0.34,77011.0,77010.0,0.02414901]
[1744132513492,0.272626,77029.0,77017.0,0.012984]
[1744132513673,0.272626,77029.0,77009.0,0.012985]
[1744132513674,0.58977618,77040.0,77026.0,0.012982]
[1744132513879,0.259617,77037.0,77028.0,0.259643]
[1744132514128,0.58977618,77040.0,77029.0,0.272621]
[1744132514329,0.60275618,77040.0,77033.0,0.259627]
[1744132514593,0.599615,77037.0,77032.0,0.25963]
[1744132514812,0.599615,77037.0,77027.0,0.012982]
[1744132515031,0.0130114,77037.0,77025.0,0.012982]
[1744132515182,0.0004,77039.0,77037.0,0.259614]
[1744132515390,0.0004,77039.0,77037.0,0.272594]
[1744132515585,0.0004,77039.0,77038.0,0.14183465]
[1744132515762,0.0004,77039.0,77038.0,0.12625864]
[1744132515964,0.012981,77032.0,77026.0,0.001]
[1744132516180,0.272628,77029.0,77026.0,0.001]
[1744132516369,0.012982,77026.0,77019.0,0.0097388]
[1744132516577,0.259652,77027.0,77024.0,4.147e-05]
[1744132516944,0.34,77035.0,77028.0,0.012982]
[1744132517098,0.34,77035.0,77030.0,0.259637]
[1744132517714,0.272631,77027.0,77026.0,0.002]
[1744132518086,0.321223,77030.0,77028.0,0.259645]
[1744132518087,0.0486,77030.0,77028.0,0.259645]
[1744132518449,0.012979,77042.0,77026.0,0.002]
[1744132518450,0.0034,77039.0,77038.0,0.259612]
[1744132518584,0.0034,77039.0,77038.0,0.272592]
[1744132518801,0.0004,77039.0,77038.0,0.272592]
[1744132519020,0.0004,77039.0,77038.0,0.39885064]
[1744132519627,0.0004,77039.0,77038.0,0.38587064]
[1744132519628,0.0034,77039.0,77038.0,0.38587064]
[1744132519825,0.0004,77039.0,77029.0,0.012982]
[1744132520024,0.0004,77039.0,77037.0,0.259613]
[1744132520319,0.0024,77039.0,77027.0,0.012982]
[1744132520521,0.0024,77039.0,77035.0,0.259618]
[1744132520724,0.0064,77039.0,77033.0,0.012981]
[1744132520935,0.0064,77039.0,77038.0,0.01298]
[1744132521133,0.0003348,77057.0,77051.0,0.259566]
[1744132521263,0.0003348,77057.0,77052.0,0.012978]
[1744132521466,0.0003348,77057.0,77052.0,0.14183204]
[1744132521669,0.0003348,77057.0,77051.0,0.259566]
[1744132521875,0.012977,77055.0,77049.0,0.22392]
[1744132522068,0.272534,77055.0,77050.0,0.25957]
[1744132522298,0.012978,77052.0,77049.0,0.22392]
[1744132522612,0.272552,77050.0,77044.0,0.259591]
[1744132522841,0.259585,77046.0,77038.0,0.22792]
[1744132523114,0.272588,77040.0,77038.0,0.22792]
[1744132523361,0.272588,77040.0,77037.0,1.02884147]
[1744132523362,0.259608,77039.0,77037.0,4.147e-05]
[1744132523588,0.01298,77038.0,77037.0,4.147e-05]
[1744132523811,0.259609,77042.0,77037.0,4.147e-05]
[1744132524050,0.01298,77038.0,77037.0,4.147e-05]
[1744132524276,0.47923864,77038.0,77037.0,4.147e-05]
[1744132524517,0.50267373,77038.0,77037.0,4.147e-05]
[1744132524750,0.012983,77019.0,77013.0,0.012984]
[1744132524962,0.27255411,77019.0,77013.0,0.012984]
[1744132525155,0.34,77023.0,77017.0,0.272665]
[1744132525432,0.012984,77015.0,77010.0,0.22430687]
[1744132525641,0.012984,77014.0,77010.0,0.22430687]
[1744132525866,0.272688,77011.0,77010.0,0.22430687]
[1744132526090,0.272681,77013.0,77010.0,0.22430687]
[1744132526376,0.259701,77012.0,77010.0,0.22430687]
[1744132526852,0.259694,77014.0,77010.0,0.22430687]
[1744132527076,0.272688,77011.0,77010.0,0.22430687]
[1744132527410,0.272688,77011.0,77010.0,0.00042687]
[1744132527856,0.612688,77011.0,77010.0,0.00042687]
[1744132528098,0.80957579,77011.0,77010.0,0.00042687]
[1744132528310,0.78614664,77011.0,77010.0,0.00442687]
[1744132528708,0.78614664,77011.0,77010.0,0.00042687]
[1744132529117,0.78614664,77011.0,77010.0,0.00342687]
[1744132529118,0.659888,77011.0,77010.0,0.00342687]
[1744132529356,0.0459,77028.0,77012.0,0.012984]
[1744132529563,0.0459,77028.0,77020.0,0.012983]
[1744132529564,0.259655,77025.0,77020.0,0.012983]
[1744132529767,0.259636,77031.0,77026.0,0.012982]
[1744132529971,0.259627,77034.0,77029.0,0.012982]
[1744132530189,0.01298,77039.0,77031.0,0.012981]
[1744132530394,0.01298,77037.0,77032.0,0.272612]
[1744132530567,0.272604,77035.0,77029.0,0.012982]
[1744132530774,0.259578,77048.0,77034.0,0.259625]
[1744132530980,0.0133128,77053.0,77048.0,0.012978]
[1744132531181,0.259569,77051.0,77046.0,0.259585]
[1744132531442,0.0003348,77053.0,77047.0,0.12625864]
[1744132531808,0.0003348,77053.0,77052.0,0.012978]
[1744132532042,0.0003348,77053.0,77052.0,0.36315664]
[1744132532276,8e-07,77053.0,77052.0,0.80454352]
[1744132532509,8e-07,77053.0,77052.0,0.76607864]
[1744132532738,8e-07,77053.0,77052.0,0.79115301]
[1744132533208,0.0003344,77061.0,77056.0,0.272528]
[1744132533437,0.0003344,77080.0,77066.0,0.02814085]
[1744132533438,8e-07,77070.0,77066.0,0.02814085]
[1744132533671,0.0003344,77080.0,77079.0,0.272447]
[1744132533939,0.0003344,77080.0,77079.0,0.62262564]
[1744132534454,0.0003344,77080.0,77079.0,0.63716649]
[1744132534660,4e-07,77080.0,77079.0,0.63716649]
[1744132535013,0.0010004,77080.0,77079.0,0.65826286]
[1744132535191,0.0010004,77080.0,77079.0,0.65840087]
[1744132535396,0.0004,77099.0,77098.0,0.27238]
[1744132535615,0.0004,77099.0,77098.0,0.62247864]
[1744132535961,0.259254,77145.0,77128.0,0.272274]
[1744132536253,0.012963,77141.0,77128.0,0.62237264]
[1744132536468,0.259262,77142.0,77128.0,0.62237264]
[1744132536588,0.012962,77146.0,77128.0,0.62237264]
[1744132536792,0.01296,77157.0,77128.0,0.62237264]
[1744132536998,0.58977618,77170.0,77128.0,0.62237264]
[1744132536999,0.272121,77172.0,77158.0,0.259208]
[1744132537200,0.012958,77167.0,77158.0,0.272168]
[1744132537397,0.00082802,77159.0,77158.0,0.39842664]
[1744132537865,0.00082802,77159.0,77158.0,0.41296749]
[1744132538830,0.00018802,77159.0,77158.0,0.39842664]
[1744132539034,0.00018802,77159.0,77158.0,0.40142664]
[1744132539482,0.00018802,77159.0,77158.0,0.40242664]
[1744132539697,0.00018802,77159.0,77158.0,0.42296749]
[1744132539916,0.00018802,77159.0,77158.0,0.35901864]
[1744132540135,0.00018802,77159.0,77158.0,0.37197864]
[1744132540364,0.00018802,77159.0,77158.0,0.23876]
[1744132540581,0.61235302,77159.0,77158.0,0.015]
[1744132541013,0.61235302,77159.0,77158.0,0.009]
[1744132541249,0.61235302,77159.0,77158.0,0.015]
[1744132541539,0.61235302,77159.0,77158.0,0.006]
[1744132541540,0.34018802,77159.0,77158.0,0.006]
[1744132541751,0.34018802,77159.0,77158.0,0.011]
[1744132542197,0.34018802,77159.0,77158.0,0.265208]
[1744132542414,0.34018802,77159.0,77158.0,0.260208]
[1744132542840,0.34018802,77159.0,77158.0,0.002]
[1744132543089,0.00018802,77159.0,77158.0,0.274168]
[1744132543714,0.00018802,77159.0,77158.0,0.40042664]
[1744132544133,0.259128,77182.0,77173.0,0.259155]
[1744132544352,0.34,77178.0,77171.0,0.259164]
[1744132544559,0.259137,77179.0,77170.0,0.012958]
[1744132544775,0.012956,77180.0,77170.0,0.012958]
[1744132544776,0.259148,77176.0,77172.0,0.259161]
[1744132544991,0.34,77175.0,77170.0,0.272124]
[1744132545225,0.012958,77172.0,77165.0,0.012959]
[1744132545443,0.34,77175.0,77165.0,0.13921764]
[1744132545672,0.34,77175.0,77164.0,0.22072]
[1744132545673,0.272085,77182.0,77174.0,0.012957]
[1744132545902,0.0465,77190.0,77182.0,0.012956]
[1744132546110,0.0465,77190.0,77183.0,0.259122]
[1744132546111,0.012955,77188.0,77183.0,0.259122]
[1744132546328,0.0465,77190.0,77183.0,0.272078]
[1744132546559,0.259112,77187.0,77182.0,0.272083]
[1744132546766,0.012955,77187.0,77181.0,0.012956]
[1744132546998,0.012954,77196.0,77184.0,0.012956]
[1744132546999,0.012954,77195.0,77184.0,0.012956]
[1744132547250,0.34,77193.0,77184.0,0.012956]
[1744132547527,0.34,77191.0,77184.0,0.012956]
[1744132547728,0.599098,77191.0,77184.0,0.012956]
[1744132548109,0.34,77191.0,77184.0,0.012956]
[1744132548321,0.34,77191.0,77183.0,0.479801]
[1744132548322,0.012955,77187.0,77183.0,0.22168]
[1744132548659,0.272057,77190.0,77184.0,0.012956]
[1744132548778,0.272067,77187.0,77183.0,0.22168]
[1744132548977,0.012956,77184.0,77183.0,0.22168]
[1744132549187,0.352956,77184.0,77183.0,0.22068]
[1744132549388,0.012956,77182.0,77181.0,0.00013801]
[1744132549814,0.47921464,77182.0,77181.0,0.00013801]
[1744132550428,0.47921464,77182.0,77181.0,1e-08]
[1744132550629,0.012962,77145.0,77139.0,0.25927]
[1744132550833,0.34,77179.0,77160.0,0.259198]
[1744132551084,0.352959,77163.0,77158.0,0.259206]
[1744132551291,0.012959,77161.0,77148.0,0.22064]
[1744132551465,0.012959,77161.0,77151.0,0.012961]
[1744132551614,0.259199,77161.0,77156.0,0.272174]
[1744132551820,0.259199,77161.0,77150.0,0.272189]
[1744132551821,0.259211,77157.0,77150.0,0.272189]
[1744132552031,0.259229,77152.0,77141.0,0.0004]
[1744132552239,0.259237,77150.0,77141.0,0.0004]
[1744132552428,0.012961,77149.0,77148.0,0.002]
[1744132552631,0.012961,77149.0,77141.0,0.0004]
[1744132552632,0.012962,77146.0,77145.0,8.2e-07]
[1744132552840,0.612225,77142.0,77141.0,8.2e-07]
[1744132553040,0.73848364,77142.0,77141.0,8.4e-07]
[1744132553247,0.272301,77121.0,77117.0,0.22064]
[1744132553602,0.012967,77118.0,77117.0,0.22064]
[1744132553802,0.34,77120.0,77117.0,0.22064]
[1744132554003,0.259339,77119.0,77117.0,0.22064]
[1744132554180,0.272309,77118.0,77117.0,0.22064]
[1744132554380,0.599338,77120.0,77117.0,0.22064]
[1744132554705,0.272331,77112.0,77111.0,0.0004]
[1744132554914,0.612331,77112.0,77111.0,0.0004]
[1744132555081,0.34,77112.0,77111.0,0.0004]
[1744132555404,0.00042767,77121.0,77111.0,0.0004]
[1744132555604,0.00042767,77121.0,77112.0,0.012968]
[1744132555816,0.00042767,77121.0,77119.0,0.259338]
[1744132556017,0.00042767,77121.0,77120.0,0.012966]
[1744132556328,0.00042767,77121.0,77117.0,0.001]
[1744132556724,0.012967,77118.0,77117.0,0.001]
[1744132556925,0.012967,77116.0,77111.0,0.0004]
[1744132557124,0.012967,77115.0,77111.0,0.0004]
[1744132557520,0.272322,77115.0,77111.0,0.0024]
[1744132557764,0.25936,77113.0,77111.0,0.0024]
[1744132557934,0.272326,77114.0,77111.0,0.0004]
[1744132558136,0.012964,77131.0,77118.0,0.012967]
[1744132558360,0.259354,77115.0,77112.0,0.259363]
[1744132558561,0.259354,77115.0,77111.0,0.0004]
[1744132558562,0.259363,77112.0,77111.0,0.0004]
[1744132558765,0.272331,77112.0,77111.0,0.0024]
[1744132559163,0.272331,77112.0,77111.0,0.0014]
[1744132559362,0.259347,77117.0,77111.0,0.0004]
[1744132559566,0.00242767,77121.0,77120.0,0.272302]
[1744132559783,0.00242767,77121.0,77120.0,0.39856064]
[1744132560127,0.00242767,77121.0,77120.0,0.12625864]
[1744132560331,0.00242767,77121.0,77119.0,0.012966]
[1744132560553,0.00242767,77121.0,77118.0,0.259339]
[1744132560773,0.012966,77120.0,77115.0,0.259351]
[1744132560951,0.25934,77119.0,77115.0,0.259351]
[1744132561148,0.012967,77117.0,77111.0,0.0004]
[1744132561329,0.259356,77115.0,77112.0,0.22068]
[1744132561563,0.012967,77116.0,77112.0,0.22068]
[1744132561770,0.012967,77113.0,77112.0,0.22068]
[1744132561949,0.259357,77114.0,77112.0,0.22068]
[1744132562159,0.34,77129.0,77120.0,0.259336]
[1744132562407,0.259309,77128.0,77120.0,0.272302]
[1744132562757,0.259309,77128.0,77116.0,0.012967]
[1744132562758,0.012967,77117.0,77112.0,0.22168]
[1744132562967,0.012967,77117.0,77112.0,0.494009]
[1744132563171,0.012967,77113.0,77112.0,0.22168]
[1744132563573,0.34,77119.0,77112.0,0.22068]
[1744132563798,0.25935,77116.0,77112.0,0.22068]
[1744132563977,0.259357,77114.0,77113.0,0.01202935]
[1744132564217,0.272323,77114.0,77113.0,0.01202935]
[1744132564614,0.612323,77114.0,77113.0,0.01202935]
[1744132565213,0.06289367,77121.0,77113.0,0.01202935]
[1744132565214,0.012966,77120.0,77113.0,0.01202935]
[1744132565440,0.272326,77113.0,77112.0,0.22068]
[1744132565643,0.272326,77113.0,77111.0,0.0004]
[1744132565644,0.352968,77112.0,77111.0,0.0004]
[1744132565982,0.001,77114.0,77113.0,0.012967]
[1744132566205,0.001,77114.0,77113.0,0.15635949]
[1744132566401,0.259239,77149.0,77120.0,0.28684285]
[1744132566592,6.7e-07,77121.0,77120.0,1.04972149]
[1744132566964,6.7e-07,77121.0,77120.0,0.65787901]
[1744132567921,6.7e-07,77121.0,77120.0,0.64585084]
[1744132568909,0.012958,77167.0,77147.0,0.272207]
[1744132569124,0.27219,77152.0,77146.0,0.22068]
[1744132569366,0.272207,77147.0,77146.0,0.22068]
[1744132569603,0.0001672,77148.0,77147.0,0.272207]
[1744132569836,0.0001672,77148.0,77147.0,0.39846564]
[1744132570034,0.0001672,77148.0,77147.0,0.41300649]
[1744132570157,0.0001672,77148.0,77147.0,0.41314461]
[1744132570769,0.0001672,77148.0,77147.0,0.43721283]
[1744132570984,0.0001672,77148.0,77147.0,0.66992688]
[1744132571376,0.0001672,77148.0,77147.0,0.67692688]
[1744132571576,0.0001672,77148.0,77147.0,0.65985866]
[1744132572553,2e-07,77148.0,77147.0,1.41575866]
[1744132573527,0.000167,77172.0,77171.0,0.28666285]
[1744132573722,0.000167,77172.0,77171.0,0.62988149]
[1744132573932,0.02,77181.0,77180.0,0.27209]
[1744132574135,0.02,77181.0,77180.0,0.41288949]
[1744132574358,0.02,77181.0,77180.0,0.42492354]
[1744132574733,0.02,77181.0,77180.0,0.41052081]
[1744132574972,0.02,77181.0,77180.0,0.02512817]
[1744132575131,0.02,77181.0,77180.0,0.15138681]
[1744132575345,0.02,77181.0,77180.0,0.01217217]
[1744132575661,0.292087,77181.0,77180.0,0.01817217]
[1744132575864,0.02,77181.0,77180.0,0.01817217]
[1744132576062,0.02,77181.0,77180.0,0.03112817]
[1744132576464,0.02,77181.0,77180.0,0.01909412]
[1744132576675,0.02,77181.0,77180.0,0.00613812]
[1744132576878,0.372956,77181.0,77180.0,0.00613812]
[1744132577666,0.46959077,77181.0,77180.0,0.00613812]
[1744132577860,0.54881464,77181.0,77180.0,1.2e-07]
[1744132578059,0.259221,77154.0,77151.0,0.21692]
[1744132578260,0.012957,77173.0,77160.0,0.01296]
[1744132578464,0.02,77181.0,77180.0,0.012956]
[1744132578805,0.259155,77174.0,77171.0,0.21692]
[1744132578978,0.272112,77174.0,77171.0,0.21692]
[1744132579402,0.25916,77173.0,77171.0,0.21692]
[1744132580224,0.012958,77172.0,77171.0,0.21705843]
[1744132580375,0.272119,77172.0,77171.0,0.21705843]
[1744132580579,0.02,77181.0,77171.0,0.21705843]
[1744132580800,0.259158,77174.0,77171.0,0.22364978]
[1744132581024,0.012958,77172.0,77171.0,0.22105843]
[1744132581204,0.012958,77172.0,77171.0,0.00013843]
[1744132581406,0.352958,77172.0,77171.0,0.00813843]
[1744132581658,0.47921664,77172.0,77171.0,0.00813843]
[1744132581843,0.352958,77172.0,77171.0,0.00413843]
[1744132582057,0.352958,77172.0,77171.0,0.00013843]
[1744132582260,0.52831664,77172.0,77171.0,0.00413843]
[1744132583192,0.80034188,77172.0,77171.0,0.00413843]
[1744132583408,0.84994188,77172.0,77171.0,4.3e-07]
[1744132584011,0.84994188,77172.0,77150.0,0.11477679]
[1744132584012,0.612192,77151.0,77150.0,7.9e-07]
[1744132584215,0.612228,77141.0,77140.0,7.9e-07]
[1744132585217,0.91384209,77141.0,77140.0,7.9e-07]
[1744132585801,0.91484209,77141.0,77140.0,0.00033559]
[1744132586364,0.78858664,77141.0,77140.0,5.9e-07]
[1744132586568,0.78858664,77141.0,77121.0,6.984e-05]
[1744132586569,0.661895,77122.0,77121.0,6.984e-05]
[1744132586841,0.78815364,77122.0,77121.0,8.4e-07]
[1744132587794,0.661431,77112.0,77111.0,1e-06]
[1744132587995,0.612331,77112.0,77111.0,0.00042867]
[1744132588595,0.73858964,77112.0,77111.0,0.00042867]
[1744132589237,0.612331,77112.0,77111.0,0.00042867]
[1744132589587,0.34,77112.0,77111.0,0.00042867]
[1744132590184,0.352968,77112.0,77111.0,0.00042867]
[1744132590390,0.60548209,77112.0,77111.0,0.00042867]
[1744132590586,0.60548209,77112.0,77087.0,0.0003338]
[1744132590587,0.272394,77094.0,77093.0,6.7e-07]
[1744132590802,0.612415,77088.0,77087.0,4.7e-07]
[1744132591035,0.73867364,77088.0,77087.0,4.7e-07]
[1744132591283,0.612415,77088.0,77087.0,4.7e-07]
[1744132591532,0.352972,77088.0,77087.0,4.7e-07]
[1744132591792,0.34,77092.0,77088.0,0.272415]
[1744132592038,0.012972,77088.0,77087.0,4.7e-07]
[1744132592278,0.363972,77088.0,77087.0,0.00207047]
[1744132592488,0.363972,77088.0,77087.0,0.00107047]
[1744132592715,0.351,77088.0,77087.0,0.00107047]
[1744132592947,0.011,77088.0,77087.0,0.00107047]
[1744132593178,0.023972,77088.0,77087.0,0.00107047]
[1744132593834,0.363972,77088.0,77087.0,0.00107047]
[1744132594073,0.362972,77088.0,77087.0,7.047e-05]
[1744132594568,0.259433,77092.0,77087.0,7.047e-05]
[1744132594569,0.01297,77101.0,77087.0,0.12632911]
[1744132594769,0.34,77104.0,77095.0,0.012971]
[1744132594918,0.012972,77088.0,77087.0,7.047e-05]
[1744132595117,0.352972,77088.0,77087.0,7.047e-05]
[1744132595319,0.355972,77088.0,77087.0,7.047e-05]
[1744132595891,0.60848609,77088.0,77087.0,7.047e-05]
[1744132596132,0.65758609,77088.0,77087.0,7.047e-05]
[1744132596382,0.66158609,77088.0,77087.0,7.047e-05]
[1744132597338,0.004,77088.0,77087.0,0.27248947]
[1744132597512,0.012971,77093.0,77087.0,0.00107047]
[1744132597808,0.006,77088.0,77087.0,0.00207047]
[1744132598014,0.259418,77096.0,77088.0,0.012972]
[1744132598252,0.012971,77095.0,77087.0,7.047e-05]
[1744132598431,0.012971,77095.0,77091.0,0.259433]
[1744132598432,0.272392,77095.0,77091.0,0.259433]
[1744132598637,0.0491,77119.0,77103.0,0.012969]
[1744132598870,0.259343,77118.0,77113.0,0.012967]
[1744132599094,0.259396,77102.0,77101.0,0.21708]
[1744132599294,0.272401,77092.0,77091.0,1.02768]
[1744132599442,0.001,77096.0,77095.0,0.272391]
[1744132600364,0.001,77096.0,77095.0,0.272461]
[1744132600586,0.34,77113.0,77107.0,0.012968]
[1744132600771,0.012967,77113.0,77103.0,0.012969]
[1744132600976,0.012967,77113.0,77109.0,0.259372]
[1744132600977,0.259363,77112.0,77109.0,0.259372]
[1744132601175,0.259362,77113.0,77109.0,0.259372]
[1744132601397,0.012967,77114.0,77106.0,0.272349]
[1744132601593,0.259366,77111.0,77107.0,0.259379]
[1744132601812,0.012967,77114.0,77109.0,0.27234]
[1744132602039,0.001,77113.0,77112.0,0.259363]
[1744132602211,0.001,77113.0,77111.0,0.259366]
[1744132602379,0.001,77113.0,77112.0,0.0155615]
[1744132602779,0.001,77113.0,77112.0,0.15636099]
[1744132603186,0.001,77113.0,77112.0,0.15376749]
[1744132603824,0.001,77113.0,77112.0,0.15636069]
[1744132604207,0.260359,77113.0,77111.0,0.21088]
[1744132604411,0.272277,77128.0,77117.0,0.012967]
[1744132604688,0.012964,77136.0,77125.0,0.012965]
[1744132604838,0.012965,77130.0,77123.0,0.012966]
[1744132605040,0.259305,77129.0,77124.0,0.012966]
[1744132605248,0.012964,77132.0,77124.0,0.012966]
[1744132605249,0.012964,77132.0,77127.0,0.012965]
[1744132605422,0.012964,77135.0,77128.0,0.012965]
[1744132605626,0.012964,77135.0,77123.0,0.12625864]
[1744132605627,0.012965,77127.0,77123.0,0.12625864]
[1744132605836,0.012966,77124.0,77114.0,0.012967]
[1744132606153,0.259339,77119.0,77116.0,0.012967]
[1744132606362,0.272292,77123.0,77118.0,0.259342]
[1744132606712,0.012967,77118.0,77117.0,0.00017857]
[1744132606896,0.272309,77118.0,77117.0,0.00017857]
[1744132607065,0.612309,77118.0,77117.0,0.00017857]
[1744132607266,0.34,77118.0,77117.0,0.25952457]
[1744132607479,0.34,77118.0,77117.0,0.00017857]
[1744132607675,0.599342,77118.0,77117.0,0.00017857]
[1744132607857,0.79424547,77118.0,77117.0,5.7e-07]
[1744132608499,0.79524547,77118.0,77117.0,5.7e-07]
[1744132608726,0.79424547,77118.0,77117.0,5.7e-07]
[1744132608954,0.79524547,77118.0,77117.0,5.7e-07]
[1744132609169,0.79424547,77118.0,77117.0,5.7e-07]
[1744132610051,0.80024547,77118.0,77117.0,5.7e-07]
[1744132610247,0.74456764,77118.0,77117.0,5.7e-07]
[1744132610653,0.74556764,77118.0,77117.0,0.00100057]
[1744132610802,0.272401,77092.0,77091.0,0.00994998]
[1744132610971,0.25944,77089.0,77087.0,4.7e-07]
[1744132611167,0.272415,77088.0,77087.0,4.7e-07]
[1744132611688,0.7200805,77088.0,77087.0,4.7e-07]
[1744132611937,0.272436,77082.0,77081.0,4.7e-07]
[1744132612155,0.39869464,77082.0,77081.0,7.047e-05]
[1744132613356,0.272436,77082.0,77081.0,7.047e-05]
[1744132613584,0.272415,77088.0,77081.0,7.047e-05]
[1744132613585,0.012971,77094.0,77085.0,0.012972]
[1744132613812,0.001,77088.0,77086.0,0.259448]
[1744132614075,0.001,77088.0,77087.0,0.012972]
[1744132614076,0.004,77088.0,77087.0,0.012972]
[1744132614286,0.259453,77085.0,77081.0,7.047e-05]
[1744132614515,0.003,77088.0,77087.0,0.012972]
[1744132614751,0.001,77094.0,77093.0,0.272397]
[1744132614958,0.001,77094.0,77093.0,0.39865564]
[1744132615209,0.012968,77112.0,77104.0,0.012969]
[1744132615428,0.012969,77106.0,77101.0,0.259397]
[1744132615680,0.259352,77115.0,77101.0,0.259397]
[1744132615903,0.01297,77101.0,77095.0,0.012971]
[1744132616136,0.012972,77085.0,77073.0,0.0475]
[1744132616361,0.012972,77085.0,77067.0,0.259513]
[1744132616362,0.272436,77082.0,77067.0,0.259513]
[1744132616566,0.612436,77082.0,77064.0,0.012976]
[1744132616815,0.612436,77082.0,77071.0,0.259498]
[1744132617065,0.34,77082.0,77073.0,0.012974]
[1744132617248,0.21587947,77113.0,77064.0,0.012976]
[1744132617249,0.259435,77091.0,77083.0,0.012973]
[1744132617450,0.01297,77096.0,77086.0,0.012972]
[1744132617655,0.259413,77097.0,77087.0,0.12625864]
[1744132617854,0.012972,77087.0,77082.0,0.259462]
[1744132618053,0.012972,77085.0,77081.0,7.047e-05]
[1744132618303,0.259462,77083.0,77081.0,7.047e-05]
[1744132618521,0.352973,77082.0,77081.0,7.047e-05]
[1744132618739,0.4700003,77082.0,77081.0,7.047e-05]
[1744132619687,0.59625894,77082.0,77081.0,7.047e-05]
[1744132619903,0.4700003,77082.0,77081.0,7.047e-05]
[1744132620352,0.012973,77082.0,77081.0,7.047e-05]
[1744132620578,0.259447,77087.0,77083.0,0.259458]
[1744132620809,0.25944,77089.0,77083.0,0.012973]
[1744132621052,0.012971,77094.0,77084.0,0.012972]
[1744132621286,0.012971,77093.0,77087.0,0.012972]
[1744132621537,0.259433,77091.0,77088.0,0.259443]
[1744132621769,0.012973,77082.0,77075.0,0.272458]
[1744132622011,0.001,77089.0,77085.0,0.259453]
[1744132622247,0.001,77089.0,77087.0,0.272416]
[1744132622498,0.01297,77097.0,77088.0,0.272412]
[1744132622723,0.012967,77118.0,77113.0,0.259357]
[1744132622970,0.58977618,77130.0,77125.0,0.012965]
[1744132622971,0.012965,77130.0,77125.0,0.012965]
[1744132623202,0.259301,77131.0,77126.0,0.012965]
[1744132623425,0.012965,77129.0,77123.0,0.259324]
[1744132623659,0.012965,77127.0,77119.0,0.012966]
[1744132623880,0.012965,77128.0,77119.0,0.012966]
[1744132624127,0.00042814,77131.0,77123.0,0.012966]
[1744132624361,0.259335,77121.0,77114.0,0.01454085]
[1744132624600,0.012967,77116.0,77112.0,0.21092]
[1744132624807,0.012967,77113.0,77112.0,0.21092]
[1744132625309,0.012969,77105.0,77100.0,0.259402]
[1744132625537,0.01297,77099.0,77098.0,0.21088]
[1744132625780,0.012969,77104.0,77085.0,0.02416244]
[1744132625781,0.272422,77086.0,77085.0,0.02416244]